[Event "Titled Tuesday Blitz November 08 Late 2022"]
[White "Fernandez Guillen, Ernesto J."]
[Black "Makarian, Rudik"]
[WhiteFideId "3512428"]
[BlackFideId "44105681"]
[WhiteElo "2450"]
[BlackElo "2423"]
[Result "1-0"]
[Round "10"]
[TimeControl "180+1"]
[Date "2022.11.08"]
[WhiteClock "0:00:03"]
[BlackClock "0:00:14"]

1. e4 {[%clk 0:03:00]}  d6 {[%clk 0:02:58]} 2. d4 {[%clk 0:02:58]}  Nf6 {[%clk 0:02:59]} 3. Nc3 {[%clk 0:02:58]}  e5 {[%clk 0:02:56]} 4. dxe5 {[%clk 0:02:59]}  dxe5 {[%clk 0:02:57]} 5. Qxd8+ {[%clk 0:02:59]}  Kxd8 {[%clk 0:02:58]} 6. Bg5 {[%clk 0:02:59]}  Nd7 {[%clk 0:02:56]} 7. O-O-O {[%clk 0:03:00]}  Bd6 {[%clk 0:02:56]} 8. f4 {[%clk 0:03:00]}  Ke8 {[%clk 0:02:49]} 9. Nf3 {[%clk 0:02:01]}  Ng4 {[%clk 0:02:27]} 10. fxe5 {[%clk 0:01:34]}  Ndxe5 {[%clk 0:02:07]} 11. Nxe5 {[%clk 0:01:33]}  Nxe5 {[%clk 0:02:06]} 12. Nb5 {[%clk 0:01:28]}  f6 {[%clk 0:01:58]} 13. Nxd6+ {[%clk 0:01:17]}  cxd6 {[%clk 0:01:57]} 14. Bd2 {[%clk 0:01:16]}  Ke7 {[%clk 0:01:56]} 15. Bb4 {[%clk 0:01:15]}  Rd8 {[%clk 0:01:57]} 16. h3 {[%clk 0:01:15]}  Be6 {[%clk 0:01:55]} 17. b3 {[%clk 0:01:14]}  a5 {[%clk 0:01:47]} 18. Ba3 {[%clk 0:01:13]}  Rac8 {[%clk 0:01:38]} 19. Bb5 {[%clk 0:01:09]}  Bf7 {[%clk 0:01:23]} 20. Rd2 {[%clk 0:01:07]}  Be8 {[%clk 0:00:59]} 21. Bxe8 {[%clk 0:01:06]}  Kxe8 {[%clk 0:01:00]} 22. Bxd6 {[%clk 0:00:59]}  Nc6 {[%clk 0:00:58]} 23. Rhd1 {[%clk 0:00:58]}  Kf7 {[%clk 0:00:58]} 24. Bf4 {[%clk 0:00:39]}  Rxd2 {[%clk 0:00:57]} 25. Rxd2 {[%clk 0:00:40]}  Ke6 {[%clk 0:00:54]} 26. Kb2 {[%clk 0:00:38]}  h5 {[%clk 0:00:54]} 27. Rd6+ {[%clk 0:00:34]}  Ke7 {[%clk 0:00:54]} 28. a3 {[%clk 0:00:30]}  g5 {[%clk 0:00:50]} 29. Bh2 {[%clk 0:00:29]}  h4 {[%clk 0:00:48]} 30. Rd5 {[%clk 0:00:29]}  Ke6 {[%clk 0:00:38]} 31. c4 {[%clk 0:00:27]}  Re8 {[%clk 0:00:31]} 32. Kc3 {[%clk 0:00:24]}  Re7 {[%clk 0:00:30]} 33. b4 {[%clk 0:00:22]}  axb4+ {[%clk 0:00:30]} 34. axb4 {[%clk 0:00:23]}  Kf7 {[%clk 0:00:28]} 35. b5 {[%clk 0:00:24]}  Na7 {[%clk 0:00:28]} 36. Kd4 {[%clk 0:00:23]}  Nc8 {[%clk 0:00:25]} 37. c5 {[%clk 0:00:22]}  Na7 {[%clk 0:00:26]} 38. b6 {[%clk 0:00:11]}  Nc6+ {[%clk 0:00:26]} 39. Ke3 {[%clk 0:00:12]}  Kg6 {[%clk 0:00:21]} 40. Bd6 {[%clk 0:00:10]}  Re6 {[%clk 0:00:21]} 41. Kf3 {[%clk 0:00:09]}  Nb4 {[%clk 0:00:19]} 42. Rd4 {[%clk 0:00:08]}  Nc6 {[%clk 0:00:19]} 43. Ra4 {[%clk 0:00:09]}  f5 {[%clk 0:00:19]} 44. exf5+ {[%clk 0:00:08]}  Kxf5 {[%clk 0:00:20]} 45. Ra8 {[%clk 0:00:08]}  Nd4+ {[%clk 0:00:20]} 46. Kf2 {[%clk 0:00:09]}  Re2+ {[%clk 0:00:20]} 47. Kf1 {[%clk 0:00:09]}  Rb2 {[%clk 0:00:19]} 48. Rb8 {[%clk 0:00:07]}  Ke4 {[%clk 0:00:17]} 49. Rxb7 {[%clk 0:00:07]}  Rb1+ {[%clk 0:00:17]} 50. Kf2 {[%clk 0:00:07]}  Rb2+ {[%clk 0:00:17]} 51. Kg1 {[%clk 0:00:07]}  g4 {[%clk 0:00:14]} 52. hxg4 {[%clk 0:00:06]}  h3 {[%clk 0:00:14]} 53. Re7+ {[%clk 0:00:05]}  Kd5 {[%clk 0:00:14]} 54. b7 {[%clk 0:00:03]}  Rxg2+ {[%clk 0:00:13]} 55. Kh1 {[%clk 0:00:03]}  Nf3 {[%clk 0:00:13]} 56. Re1 {[%clk 0:00:02]}  Nxe1 {[%clk 0:00:12]} 57. b8=Q {[%clk 0:00:02]}  Kd4 {[%clk 0:00:12]} 58. Qb4+ {[%clk 0:00:01]}  Kd3 {[%clk 0:00:13]} 59. Qxe1 {[%clk 0:00:02]}  Re2 {[%clk 0:00:13]} 60. Qxe2+ {[%clk 0:00:02]}  Kxe2 {[%clk 0:00:14]} 61. c6 {[%clk 0:00:03]} 1-0


[Site "https://www.chess.com"]

[Event "Titled Tuesday Blitz November 08 Late 2022"]
[White "Fier, Alexandr"]
[Black "Kollars, Dmitrij"]
[WhiteFideId "2107139"]
[BlackFideId "12909572"]
[WhiteElo "2617"]
[BlackElo "2584"]
[Result "0-1"]
[Round "10"]
[TimeControl "180+1"]
[Date "2022.11.08"]
[WhiteClock "0:01:39"]
[BlackClock "0:01:07"]

1. c4 {[%clk 0:03:00]}  e5 {[%clk 0:02:58]} 2. Nc3 {[%clk 0:03:01]}  Nf6 {[%clk 0:02:54]} 3. Nf3 {[%clk 0:03:01]}  Nc6 {[%clk 0:02:54]} 4. e3 {[%clk 0:03:02]}  Bb4 {[%clk 0:02:54]} 5. Qc2 {[%clk 0:03:02]}  Bxc3 {[%clk 0:02:49]} 6. Qxc3 {[%clk 0:03:02]}  Qe7 {[%clk 0:02:49]} 7. d4 {[%clk 0:03:02]}  e4 {[%clk 0:02:37]} 8. Nd2 {[%clk 0:03:01]}  d5 {[%clk 0:02:37]} 9. b3 {[%clk 0:02:58]}  h5 {[%clk 0:02:35]} 10. h3 {[%clk 0:02:58]}  h4 {[%clk 0:02:33]} 11. Be2 {[%clk 0:02:57]}  Be6 {[%clk 0:02:33]} 12. Bb2 {[%clk 0:02:54]}  a5 {[%clk 0:02:32]} 13. a3 {[%clk 0:02:53]}  O-O {[%clk 0:02:20]} 14. Rc1 {[%clk 0:02:52]}  Nb8 {[%clk 0:02:16]} 15. cxd5 {[%clk 0:02:49]}  Nxd5 {[%clk 0:02:16]} 16. Qc5 {[%clk 0:02:50]}  Qg5 {[%clk 0:02:01]} 17. O-O {[%clk 0:02:06]}  Bxh3 {[%clk 0:01:46]} 18. g3 {[%clk 0:02:06]}  hxg3 {[%clk 0:01:33]} 19. f4 {[%clk 0:02:06]}  Qh4 {[%clk 0:01:14]} 20. Qxd5 {[%clk 0:01:39]}  Bg4 {[%clk 0:01:07]} 0-1


[Site "https://www.chess.com"]

[Event "Titled Tuesday Blitz November 08 Late 2022"]
[White "Fiol, Fabrice"]
[Black "Jorquera, Marcelo"]
[WhiteFideId "611670"]
[BlackFideId "3401197"]
[WhiteElo "2447"]
[BlackElo "2136"]
[Result "0-1"]
[Round "10"]
[TimeControl "180+1"]
[Date "2022.11.09"]
[WhiteClock "0:01:37"]
[BlackClock "0:01:27"]

1. e4 {[%clk 0:03:00]}  d5 {[%clk 0:02:59]} 2. exd5 {[%clk 0:02:58]}  Qxd5 {[%clk 0:02:59]} 3. Nf3 {[%clk 0:02:58]}  Bg4 {[%clk 0:02:58]} 4. Be2 {[%clk 0:02:56]}  Nc6 {[%clk 0:02:58]} 5. d4 {[%clk 0:02:56]}  O-O-O {[%clk 0:02:57]} 6. c4 {[%clk 0:02:55]}  Qd7 {[%clk 0:02:56]} 7. d5 {[%clk 0:02:46]}  Bxf3 {[%clk 0:02:55]} 8. gxf3 {[%clk 0:02:43]}  Ne5 {[%clk 0:02:50]} 9. f4 {[%clk 0:02:35]}  Ng6 {[%clk 0:02:49]} 10. Nc3 {[%clk 0:02:31]}  Nf6 {[%clk 0:02:36]} 11. Be3 {[%clk 0:02:27]}  e6 {[%clk 0:02:29]} 12. Bf3 {[%clk 0:02:07]}  Bb4 {[%clk 0:02:21]} 13. Rc1 {[%clk 0:02:03]}  exd5 {[%clk 0:02:19]} 14. cxd5 {[%clk 0:02:03]}  Nxd5 {[%clk 0:02:09]} 15. Qb3 {[%clk 0:01:49]}  Nxe3 {[%clk 0:01:29]} 16. Qxb4 {[%clk 0:01:37]}  Qd2# {[%clk 0:01:27]} 0-1


[Site "https://www.chess.com"]

[Event "Titled Tuesday Blitz November 08 Late 2022"]
[White "Forgacs, Attila Jr."]
[Black "Gonzalez, Francisco Silva"]
[WhiteFideId "773654"]
[BlackFideId "1512285"]
[WhiteElo "2168"]
[BlackElo "2159"]
[Result "1-0"]
[Round "10"]
[TimeControl "180+1"]
[Date "2022.11.09"]
[WhiteClock "0:01:13"]
[BlackClock "0:00:35"]

1. e4 {[%clk 0:03:00]}  e5 {[%clk 0:03:00]} 2. Nf3 {[%clk 0:03:01]}  Nc6 {[%clk 0:03:00]} 3. Bb5 {[%clk 0:03:01]}  a6 {[%clk 0:02:58]} 4. Ba4 {[%clk 0:03:02]}  Nf6 {[%clk 0:02:58]} 5. O-O {[%clk 0:03:02]}  b5 {[%clk 0:02:58]} 6. Bb3 {[%clk 0:03:02]}  Bc5 {[%clk 0:02:58]} 7. a4 {[%clk 0:03:03]}  Rb8 {[%clk 0:02:57]} 8. axb5 {[%clk 0:03:03]}  axb5 {[%clk 0:02:58]} 9. Nxe5 {[%clk 0:03:03]}  Nxe5 {[%clk 0:02:57]} 10. d4 {[%clk 0:03:04]}  Bxd4 {[%clk 0:02:58]} 11. Qxd4 {[%clk 0:03:05]}  d6 {[%clk 0:02:59]} 12. Bg5 {[%clk 0:03:04]}  c5 {[%clk 0:02:59]} 13. Qe3 {[%clk 0:03:03]}  c4 {[%clk 0:03:00]} 14. Ba2 {[%clk 0:03:04]}  Neg4 {[%clk 0:02:49]} 15. Qd4 {[%clk 0:02:53]}  O-O {[%clk 0:02:43]} 16. Nc3 {[%clk 0:02:51]}  h6 {[%clk 0:02:42]} 17. Bh4 {[%clk 0:02:51]}  Qb6 {[%clk 0:02:24]} 18. Qxb6 {[%clk 0:02:47]}  Rxb6 {[%clk 0:02:24]} 19. h3 {[%clk 0:02:47]}  g5 {[%clk 0:02:22]} 20. hxg4 {[%clk 0:02:39]}  gxh4 {[%clk 0:02:21]} 21. f3 {[%clk 0:02:24]}  Be6 {[%clk 0:02:20]} 22. Bb1 {[%clk 0:02:19]}  b4 {[%clk 0:02:19]} 23. Ne2 {[%clk 0:02:15]}  d5 {[%clk 0:02:15]} 24. e5 {[%clk 0:02:12]}  Nd7 {[%clk 0:02:13]} 25. f4 {[%clk 0:02:04]}  Bxg4 {[%clk 0:02:12]} 26. Nd4 {[%clk 0:02:05]}  Nc5 {[%clk 0:02:09]} 27. Ra5 {[%clk 0:02:03]}  Rc8 {[%clk 0:02:04]} 28. f5 {[%clk 0:02:04]}  h5 {[%clk 0:02:01]} 29. c3 {[%clk 0:01:58]}  bxc3 {[%clk 0:01:56]} 30. bxc3 {[%clk 0:01:59]}  Rb2 {[%clk 0:01:51]} 31. f6 {[%clk 0:01:59]}  Rd2 {[%clk 0:01:42]} 32. Nf5 {[%clk 0:01:59]}  Bxf5 {[%clk 0:01:40]} 33. Bxf5 {[%clk 0:02:00]}  Nb7 {[%clk 0:01:32]} 34. Rb5 {[%clk 0:01:48]}  Rc7 {[%clk 0:01:29]} 35. Rfb1 {[%clk 0:01:48]}  h3 {[%clk 0:00:55]} 36. gxh3 {[%clk 0:01:43]}  d4 {[%clk 0:00:52]} 37. Rxb7 {[%clk 0:01:42]}  Rd1+ {[%clk 0:00:52]} 38. Rxd1 {[%clk 0:01:38]}  Rxb7 {[%clk 0:00:51]} 39. Rxd4 {[%clk 0:01:38]}  Rb8 {[%clk 0:00:50]} 40. Rd7 {[%clk 0:01:35]}  h4 {[%clk 0:00:49]} 41. e6 {[%clk 0:01:33]}  fxe6 {[%clk 0:00:49]} 42. Bxe6+ {[%clk 0:01:33]}  Kh8 {[%clk 0:00:48]} 43. Bf5 {[%clk 0:01:26]}  Kg8 {[%clk 0:00:45]} 44. Rh7 {[%clk 0:01:22]}  Rb3 {[%clk 0:00:43]} 45. f7+ {[%clk 0:01:22]}  Kf8 {[%clk 0:00:41]} 46. Be6 {[%clk 0:01:20]}  Ke7 {[%clk 0:00:39]} 47. Rh8 {[%clk 0:01:18]}  Kxe6 {[%clk 0:00:37]} 48. f8=Q {[%clk 0:01:18]}  Rb1+ {[%clk 0:00:36]} 49. Kf2 {[%clk 0:01:16]}  Rb8 {[%clk 0:00:36]} 50. Qxb8 {[%clk 0:01:15]}  Kf5 {[%clk 0:00:37]} 51. Qb5+ {[%clk 0:01:14]}  Ke4 {[%clk 0:00:35]} 52. Re8+ {[%clk 0:01:13]} 1-0


[Site "https://www.chess.com"]

[Event "Titled Tuesday Blitz November 08 Late 2022"]
[White "Gardezi, Arsal"]
[Black "Floresvillar Gonzalez, Luis Migu"]
[WhiteFideId "30949521"]
[BlackFideId "5100542"]
[WhiteElo "1906"]
[BlackElo "2040"]
[Result "1-0"]
[Round "10"]
[TimeControl "180+1"]
[Date "2022.11.09"]
[WhiteClock "0:01:29"]
[BlackClock "0:00:22"]

1. e4 {[%clk 0:02:49]}  c6 {[%clk 0:02:59]} 2. d4 {[%clk 0:02:48]}  d5 {[%clk 0:02:59]} 3. e5 {[%clk 0:02:49]}  Bf5 {[%clk 0:02:57]} 4. Bd3 {[%clk 0:02:49]}  Bxd3 {[%clk 0:02:56]} 5. Qxd3 {[%clk 0:02:50]}  e6 {[%clk 0:02:56]} 6. c3 {[%clk 0:02:51]}  c5 {[%clk 0:02:56]} 7. Nf3 {[%clk 0:02:38]}  Nc6 {[%clk 0:02:56]} 8. O-O {[%clk 0:02:37]}  Qb6 {[%clk 0:02:50]} 9. Nbd2 {[%clk 0:02:36]}  cxd4 {[%clk 0:02:50]} 10. cxd4 {[%clk 0:02:33]}  Nge7 {[%clk 0:02:50]} 11. Nb3 {[%clk 0:02:33]}  Nf5 {[%clk 0:02:46]} 12. Bd2 {[%clk 0:02:28]}  Be7 {[%clk 0:02:45]} 13. Rac1 {[%clk 0:02:28]}  O-O {[%clk 0:02:43]} 14. a4 {[%clk 0:02:28]}  a6 {[%clk 0:02:35]} 15. a5 {[%clk 0:02:28]}  Qa7 {[%clk 0:02:34]} 16. Nc5 {[%clk 0:02:27]}  Rac8 {[%clk 0:02:25]} 17. Nd7 {[%clk 0:02:26]}  Rfd8 {[%clk 0:02:18]} 18. Nb6 {[%clk 0:02:27]}  Rc7 {[%clk 0:02:14]} 19. g4 {[%clk 0:02:25]}  Nh4 {[%clk 0:02:13]} 20. Nxh4 {[%clk 0:02:24]}  Bxh4 {[%clk 0:02:11]} 21. g5 {[%clk 0:02:24]}  Nxa5 {[%clk 0:01:52]} 22. Bxa5 {[%clk 0:02:20]}  Rxc1 {[%clk 0:01:51]} 23. Rxc1 {[%clk 0:02:21]}  Bxg5 {[%clk 0:01:50]} 24. Rc7 {[%clk 0:02:21]}  Qb8 {[%clk 0:01:41]} 25. Nd7 {[%clk 0:02:13]}  Qa7 {[%clk 0:01:26]} 26. Bb6 {[%clk 0:02:13]}  Qa8 {[%clk 0:01:25]} 27. Nc5 {[%clk 0:02:13]}  Rc8 {[%clk 0:01:23]} 28. Rd7 {[%clk 0:01:56]}  Rc6 {[%clk 0:01:17]} 29. Qf3 {[%clk 0:01:51]}  Qf8 {[%clk 0:01:04]} 30. Rxb7 {[%clk 0:01:51]}  h6 {[%clk 0:00:59]} 31. Nd7 {[%clk 0:01:43]}  Qc8 {[%clk 0:00:49]} 32. Rb8 {[%clk 0:01:42]}  Qxb8 {[%clk 0:00:43]} 33. Nxb8 {[%clk 0:01:41]}  Rxb6 {[%clk 0:00:44]} 34. Nd7 {[%clk 0:01:36]}  Rxb2 {[%clk 0:00:43]} 35. Qa3 {[%clk 0:01:34]}  Rd2 {[%clk 0:00:34]} 36. Qf8+ {[%clk 0:01:32]}  Kh7 {[%clk 0:00:34]} 37. Qxf7 {[%clk 0:01:32]}  Rxd4 {[%clk 0:00:33]} 38. Nf8+ {[%clk 0:01:29]}  Kh8 {[%clk 0:00:31]} 39. Nxe6 {[%clk 0:01:30]}  a5 {[%clk 0:00:22]} 40. Qxg7# {[%clk 0:01:29]} 1-0


[Site "https://www.chess.com"]

[Event "Titled Tuesday Blitz November 08 Late 2022"]
[White "Gasparyan, David"]
[Black "Arbunic Castro, Giovanna"]
[WhiteFideId "13311980"]
[BlackFideId "3400549"]
[WhiteElo "2269"]
[BlackElo "1884"]
[Result "1-0"]
[Round "10"]
[TimeControl "180+1"]
[Date "2022.11.09"]
[WhiteClock "0:01:00"]
[BlackClock "0:00:02"]

1. c4 {[%clk 0:03:00]}  Nf6 {[%clk 0:02:58]} 2. Nf3 {[%clk 0:02:54]}  g6 {[%clk 0:02:57]} 3. d4 {[%clk 0:02:51]}  Bg7 {[%clk 0:02:57]} 4. Nc3 {[%clk 0:02:51]}  d6 {[%clk 0:02:54]} 5. e4 {[%clk 0:02:50]}  O-O {[%clk 0:02:52]} 6. Be2 {[%clk 0:02:50]}  e5 {[%clk 0:02:51]} 7. Be3 {[%clk 0:02:47]}  exd4 {[%clk 0:02:48]} 8. Nxd4 {[%clk 0:02:46]}  Re8 {[%clk 0:02:47]} 9. Qc2 {[%clk 0:02:42]}  Nbd7 {[%clk 0:02:43]} 10. O-O {[%clk 0:02:39]}  Nc5 {[%clk 0:02:42]} 11. f3 {[%clk 0:02:37]}  c6 {[%clk 0:02:23]} 12. b4 {[%clk 0:02:34]}  Ne6 {[%clk 0:02:19]} 13. Rfd1 {[%clk 0:02:27]}  Qb6 {[%clk 0:02:11]} 14. Nf5 {[%clk 0:02:23]}  Qxb4 {[%clk 0:02:07]} 15. Nxg7 {[%clk 0:02:15]}  Kxg7 {[%clk 0:01:59]} 16. Rab1 {[%clk 0:02:14]}  Qa5 {[%clk 0:01:55]} 17. Rxd6 {[%clk 0:02:09]}  Qe5 {[%clk 0:01:34]} 18. Rbd1 {[%clk 0:02:02]}  Nf4 {[%clk 0:01:27]} 19. Bf1 {[%clk 0:01:59]}  Qg5 {[%clk 0:01:20]} 20. Kh1 {[%clk 0:01:56]}  N6h5 {[%clk 0:00:44]} 21. Qb2 {[%clk 0:01:21]}  f6 {[%clk 0:00:35]} 22. g3 {[%clk 0:01:05]}  Nxg3+ {[%clk 0:00:28]} 23. hxg3 {[%clk 0:01:06]}  Qxg3 {[%clk 0:00:28]} 24. Qf2 {[%clk 0:01:07]}  Qg5 {[%clk 0:00:18]} 25. Qh2 {[%clk 0:01:03]}  Qa5 {[%clk 0:00:09]} 26. Qxf4 {[%clk 0:01:00]}  Qxc3 {[%clk 0:00:08]} 27. Bd4 {[%clk 0:01:00]}  Qc2 {[%clk 0:00:02]} 28. Qxf6+ {[%clk 0:01:00]} 1-0


[Site "https://www.chess.com"]

[Event "Titled Tuesday Blitz November 08 Late 2022"]
[White "Guimaraes, Marcelo Cunha"]
[Black "Thomas, Anysia"]
[WhiteFideId "2118068"]
[BlackFideId "670472"]
[WhiteElo "2108"]
[BlackElo "2069"]
[Result "0-1"]
[Round "10"]
[TimeControl "180+1"]
[Date "2022.11.09"]
[WhiteClock "0:00:05"]
[BlackClock "0:00:02"]

1. e4 {[%clk 0:03:00]}  c5 {[%clk 0:02:59]} 2. Nf3 {[%clk 0:02:59]}  g6 {[%clk 0:02:58]} 3. d4 {[%clk 0:02:59]}  cxd4 {[%clk 0:02:59]} 4. Nxd4 {[%clk 0:02:59]}  Nc6 {[%clk 0:02:59]} 5. Nc3 {[%clk 0:02:59]}  Bg7 {[%clk 0:02:59]} 6. Be3 {[%clk 0:02:59]}  Nf6 {[%clk 0:02:59]} 7. Bc4 {[%clk 0:03:00]}  O-O {[%clk 0:02:59]} 8. Bb3 {[%clk 0:02:59]}  a5 {[%clk 0:02:56]} 9. O-O {[%clk 0:02:58]}  a4 {[%clk 0:02:48]} 10. Nxa4 {[%clk 0:02:57]}  Nxe4 {[%clk 0:02:45]} 11. c4 {[%clk 0:02:52]}  d6 {[%clk 0:02:41]} 12. Nb5 {[%clk 0:02:51]}  Be6 {[%clk 0:02:30]} 13. Qe2 {[%clk 0:02:12]}  Ra6 {[%clk 0:02:18]} 14. Rfd1 {[%clk 0:02:06]}  Nf6 {[%clk 0:02:12]} 15. Nc5 {[%clk 0:01:58]}  Ra8 {[%clk 0:02:04]} 16. Nxe6 {[%clk 0:01:45]}  fxe6 {[%clk 0:02:05]} 17. Bg5 {[%clk 0:01:38]}  Qc8 {[%clk 0:01:57]} 18. Re1 {[%clk 0:01:29]}  Ne5 {[%clk 0:01:13]} 19. f4 {[%clk 0:01:15]}  Qc5+ {[%clk 0:01:09]} 20. Kh1 {[%clk 0:01:09]}  Nfg4 {[%clk 0:01:03]} 21. Rf1 {[%clk 0:00:58]}  Rf7 {[%clk 0:00:34]} 22. fxe5 {[%clk 0:00:54]}  Nf2+ {[%clk 0:00:31]} 23. Rxf2 {[%clk 0:00:53]}  Rxf2 {[%clk 0:00:30]} 24. Qe3 {[%clk 0:00:48]}  Bxe5 {[%clk 0:00:22]} 25. Qxc5 {[%clk 0:00:42]}  dxc5 {[%clk 0:00:22]} 26. Bxe7 {[%clk 0:00:38]}  Bxb2 {[%clk 0:00:19]} 27. Re1 {[%clk 0:00:24]}  b6 {[%clk 0:00:18]} 28. Bh4 {[%clk 0:00:18]}  Rf5 {[%clk 0:00:15]} 29. Bg3 {[%clk 0:00:17]}  Raf8 {[%clk 0:00:11]} 30. h3 {[%clk 0:00:17]}  Rf1+ {[%clk 0:00:11]} 31. Rxf1 {[%clk 0:00:17]}  Rxf1+ {[%clk 0:00:12]} 32. Kh2 {[%clk 0:00:18]}  Bc1 {[%clk 0:00:10]} 33. Bc7 {[%clk 0:00:17]}  Be3 {[%clk 0:00:07]} 34. Nc3 {[%clk 0:00:14]}  Bg1+ {[%clk 0:00:03]} 35. Kg3 {[%clk 0:00:13]}  Bd4 {[%clk 0:00:04]} 36. Ne2 {[%clk 0:00:12]}  Re1 {[%clk 0:00:04]} 37. Nf4 {[%clk 0:00:09]}  Re3+ {[%clk 0:00:03]} 38. Kh2 {[%clk 0:00:08]}  Re4 {[%clk 0:00:02]} 39. Kg3 {[%clk 0:00:05]}  Kf7 {[%clk 0:00:02]} 0-1


[Site "https://www.chess.com"]

[Event "Titled Tuesday Blitz November 08 Late 2022"]
[White "Jobava, Baadur"]
[Black "Baskakov, Egor"]
[WhiteFideId "13601520"]
[BlackFideId "24197866"]
[WhiteElo "2582"]
[BlackElo "2211"]
[Result "1-0"]
[Round "10"]
[TimeControl "180+1"]
[Date "2022.11.08"]
[WhiteClock "0:01:07"]
[BlackClock "0:00:34"]

1. b3 {[%clk 0:03:00]}  Nf6 {[%clk 0:02:59]} 2. Bb2 {[%clk 0:03:01]}  e6 {[%clk 0:02:59]} 3. g3 {[%clk 0:03:01]}  Be7 {[%clk 0:02:59]} 4. Bg2 {[%clk 0:03:02]}  O-O {[%clk 0:03:00]} 5. c4 {[%clk 0:03:02]}  d5 {[%clk 0:03:00]} 6. Nf3 {[%clk 0:03:03]}  c5 {[%clk 0:02:59]} 7. O-O {[%clk 0:03:03]}  Nc6 {[%clk 0:03:00]} 8. cxd5 {[%clk 0:03:02]}  Nxd5 {[%clk 0:03:00]} 9. Nc3 {[%clk 0:03:02]}  Bf6 {[%clk 0:03:00]} 10. Rc1 {[%clk 0:03:03]}  b6 {[%clk 0:03:00]} 11. Qc2 {[%clk 0:03:00]}  Bb7 {[%clk 0:02:59]} 12. Nxd5 {[%clk 0:03:01]}  exd5 {[%clk 0:03:00]} 13. d4 {[%clk 0:02:57]}  Nxd4 {[%clk 0:03:00]} 14. Nxd4 {[%clk 0:02:56]}  cxd4 {[%clk 0:03:01]} 15. Qd3 {[%clk 0:02:53]}  Re8 {[%clk 0:03:00]} 16. Rc2 {[%clk 0:02:51]}  Re4 {[%clk 0:02:20]} 17. Rfc1 {[%clk 0:02:47]}  Qe8 {[%clk 0:02:14]} 18. Rc7 {[%clk 0:02:42]}  Rxe2 {[%clk 0:02:12]} 19. Rxb7 {[%clk 0:02:40]}  Rxb2 {[%clk 0:02:11]} 20. Bxd5 {[%clk 0:02:41]}  Kh8 {[%clk 0:02:06]} 21. Bxf7 {[%clk 0:02:18]}  Qe5 {[%clk 0:02:05]} 22. Rxa7 {[%clk 0:02:14]}  Rd8 {[%clk 0:02:02]} 23. Rd1 {[%clk 0:01:54]}  Rf8 {[%clk 0:01:25]} 24. a4 {[%clk 0:01:34]}  Qc5 {[%clk 0:00:46]} 25. Rd7 {[%clk 0:01:11]}  Rc2 {[%clk 0:00:36]} 26. Rd5 {[%clk 0:01:07]}  Qc7 {[%clk 0:00:34]} 27. Qxh7+ {[%clk 0:01:07]} 1-0


[Site "https://www.chess.com"]

[Event "Titled Tuesday Blitz November 08 Late 2022"]
[White "Kaplan, Avi Harrison"]
[Black "chess50years"]
[WhiteFideId "30934559"]
[WhiteElo "1983"]
[BlackElo "2140"]
[Result "1/2-1/2"]
[Round "10"]
[TimeControl "180+1"]
[Date "2022.11.09"]
[WhiteClock "0:00:05"]
[BlackClock "0:00:09"]

1. d4 {[%clk 0:03:00]}  Nf6 {[%clk 0:02:57]} 2. c4 {[%clk 0:03:00]}  e6 {[%clk 0:02:54]} 3. Nc3 {[%clk 0:03:00]}  Bb4 {[%clk 0:02:54]} 4. Bd2 {[%clk 0:03:00]}  O-O {[%clk 0:02:52]} 5. Nf3 {[%clk 0:02:59]}  d5 {[%clk 0:02:46]} 6. e3 {[%clk 0:02:59]}  Bxc3 {[%clk 0:02:44]} 7. Bxc3 {[%clk 0:02:59]}  Ne4 {[%clk 0:02:45]} 8. Rc1 {[%clk 0:02:59]}  Nxc3 {[%clk 0:02:43]} 9. Rxc3 {[%clk 0:03:00]}  c6 {[%clk 0:02:43]} 10. c5 {[%clk 0:02:56]}  b6 {[%clk 0:02:38]} 11. Bd3 {[%clk 0:02:40]}  bxc5 {[%clk 0:02:37]} 12. Rxc5 {[%clk 0:02:19]}  Qb6 {[%clk 0:02:26]} 13. Qc2 {[%clk 0:02:04]}  h6 {[%clk 0:02:22]} 14. O-O {[%clk 0:02:04]}  Ba6 {[%clk 0:02:19]} 15. Bxa6 {[%clk 0:01:44]}  Qxa6 {[%clk 0:02:19]} 16. a3 {[%clk 0:01:43]}  Rc8 {[%clk 0:02:17]} 17. Rc1 {[%clk 0:01:43]}  Nd7 {[%clk 0:01:57]} 18. Rxc6 {[%clk 0:01:41]}  Rxc6 {[%clk 0:01:56]} 19. Qxc6 {[%clk 0:01:41]}  Qxc6 {[%clk 0:01:47]} 20. Rxc6 {[%clk 0:01:42]}  Rb8 {[%clk 0:01:44]} 21. Rc2 {[%clk 0:01:27]}  Nb6 {[%clk 0:01:41]} 22. Ne5 {[%clk 0:01:15]}  f6 {[%clk 0:01:35]} 23. Nc6 {[%clk 0:01:15]}  Rb7 {[%clk 0:01:32]} 24. Nd8 {[%clk 0:01:14]}  Re7 {[%clk 0:01:27]} 25. Kf1 {[%clk 0:01:10]}  e5 {[%clk 0:01:17]} 26. dxe5 {[%clk 0:01:07]}  fxe5 {[%clk 0:01:16]} 27. Nc6 {[%clk 0:01:01]}  Rc7 {[%clk 0:01:14]} 28. Nd4 {[%clk 0:01:01]}  Nc4 {[%clk 0:01:01]} 29. Nf3 {[%clk 0:00:56]}  Nxe3+ {[%clk 0:01:00]} 30. fxe3 {[%clk 0:00:55]}  Rxc2 {[%clk 0:01:01]} 31. b4 {[%clk 0:00:54]}  e4 {[%clk 0:00:54]} 32. Nd4 {[%clk 0:00:45]}  Ra2 {[%clk 0:00:53]} 33. Nc6 {[%clk 0:00:43]}  a6 {[%clk 0:00:52]} 34. Ne7+ {[%clk 0:00:40]}  Kf7 {[%clk 0:00:51]} 35. Nxd5 {[%clk 0:00:41]}  Rxa3 {[%clk 0:00:50]} 36. Nc7 {[%clk 0:00:38]}  Rxe3 {[%clk 0:00:41]} 37. Nxa6 {[%clk 0:00:38]}  Rb3 {[%clk 0:00:41]} 38. Ke2 {[%clk 0:00:35]}  Kf6 {[%clk 0:00:40]} 39. Nc7 {[%clk 0:00:30]}  Ke5 {[%clk 0:00:35]} 40. b5 {[%clk 0:00:30]}  g5 {[%clk 0:00:31]} 41. Kd2 {[%clk 0:00:21]}  h5 {[%clk 0:00:31]} 42. Kc2 {[%clk 0:00:20]}  Ra3 {[%clk 0:00:29]} 43. b6 {[%clk 0:00:19]}  Ra2+ {[%clk 0:00:26]} 44. Kb3 {[%clk 0:00:19]}  Ra1 {[%clk 0:00:25]} 45. Kb2 {[%clk 0:00:16]}  Ra4 {[%clk 0:00:23]} 46. Kb3 {[%clk 0:00:12]}  Ra1 {[%clk 0:00:21]} 47. Kb2 {[%clk 0:00:11]}  Ra4 {[%clk 0:00:12]} 48. Kc3 {[%clk 0:00:08]}  Ra1 {[%clk 0:00:11]} 49. Kc2 {[%clk 0:00:06]}  Ra4 {[%clk 0:00:09]} 50. Kb3 {[%clk 0:00:05]}  Ra1 {[%clk 0:00:09]} 1/2-1/2


[Site "https://www.chess.com"]